fUST/lending_fUST_20241022
["ID","MTS","AMOUNT","RATE_DAILY","PERIOD"]
[340616606,1729535434328,-1362.09,0.00016438,2]
[340616607,1729535434339,-797.61,0.00016438,2]
[340616608,1729535434352,-1897.36,0.00016438,2]
[340616609,1729535434361,-562.76133624,0.00016438,2]
[340616610,1729535434371,-1116.09,0.00016438,2]
[340616611,1729535434382,-2649.52,0.00016438,2]
[340616612,1729535434392,-1212.04,0.00016438,2]
[340616613,1729535434402,-520.03,0.00016438,2]
[340616614,1729535434412,-917.07,0.00016438,2]
[340616615,1729535434421,-1120.22,0.00016438,2]
[340616616,1729535434604,-1172.0,0.00016438,2]
[340616617,1729535434617,-627.95,0.00016438,2]
[340616618,1729535434627,-500.0,0.00016438,2]
[340616619,1729535434638,-729.22,0.00016438,2]
[340616620,1729535434648,-1133.71,0.00016438,2]
[340616621,1729535434658,-151.0,0.00016438,2]
[340616622,1729535434667,-626.39,0.00016438,2]
[340616623,1729535434677,-991.44,0.00016438,2]
[340616624,1729535434687,-1115.82,0.00016438,2]
[340616625,1729535434696,-1135.35,0.00016438,2]
[340616626,1729535434706,-764.62,0.00016438,2]
[340616627,1729535434715,-771.77,0.00016438,2]
[340616628,1729535434725,-1278.97,0.00016438,2]
[340616629,1729535434735,-500.0,0.00016438,2]
[340616630,1729535434745,-792.97,0.00016438,2]
[340616631,1729535434755,-1770.98,0.00016438,2]
[340616632,1729535434765,-500.0,0.00016438,2]
[340616633,1729535434774,-698.91,0.00016438,2]
[340616634,1729535434783,-500.0,0.00016438,2]
[340616635,1729535434793,-151.0,0.00016438,2]
[340616636,1729535434803,-500.0,0.00016438,2]
[340616637,1729535434812,-151.0,0.00016438,2]
[340616638,1729535434821,-151.0,0.00016438,2]
[340616639,1729535434832,-1096.37,0.00016438,2]
[340616640,1729535434841,-852.7,0.00016438,2]
[340616641,1729535434851,-500.0,0.00016438,2]
[340616642,1729535434862,-151.0,0.00016438,2]
[340616643,1729535434872,-826.3,0.00016438,2]
[340616644,1729535434881,-815.99,0.00016438,2]
[340616645,1729535434891,-742.13,0.00016438,2]
[340616646,1729535434900,-1134.21,0.00016438,2]
[340616647,1729535434910,-500.0,0.00016438,2]
[340616648,1729535434922,-151.0,0.00016438,2]
[340616649,1729535434931,-500.0,0.00016438,2]
[340616650,1729535434941,-151.0,0.00016438,2]
[340616651,1729535434950,-457.46825505,0.00016438,2]
[340616652,1729535434960,-500.0,0.00016438,2]
[340616653,1729535434969,-1538.19,0.00016438,2]
[340616654,1729535434978,-151.0,0.00016438,2]
[340616655,1729535434987,-151.0,0.00016438,2]
[340616656,1729535434998,-582.27,0.00016438,2]
[340616657,1729535435007,-539.77,0.00016438,2]
[340616658,1729535435017,-500.0,0.00016438,2]
[340616659,1729535435026,-500.0,0.00016438,2]
[340616660,1729535435035,-550.71722973,0.00016438,2]
[340616661,1729535435068,-313.73277027,0.00016438,2]
[340616662,1729535435077,-452.68449302,0.00016438,2]
[340616663,1729535435090,-47.31550698,0.00016438,2]
[340616664,1729535435100,-151.0,0.00016438,2]
[340616665,1729535435109,-500.0,0.00016438,2]
[340616666,1729535435118,-500.0,0.00016438,2]
[340616667,1729535435128,-500.0,0.00016438,2]
[340616668,1729535435137,-729.9,0.00016438,2]
[340616669,1729535435146,-577.79,0.00016438,2]
[340616670,1729535435155,-516.08959275,0.00016438,2]
[340616671,1729535435165,-151.0,0.00016438,2]
[340616672,1729535435174,-500.0,0.00016438,2]
[340616673,1729535435183,-629.14,0.00016438,2]
[340616674,1729535435193,-500.0,0.00016438,2]
[340616675,1729535435202,-500.0,0.00016438,2]
[340616676,1729535435211,-935.92,0.00016438,2]
[340616677,1729535435221,-997.14,0.00016438,2]
[340616678,1729535435231,-500.0,0.00016438,2]
[340616679,1729535435240,-574.24,0.00016438,2]
[340616680,1729535435250,-1706.25,0.00016438,2]
[340616681,1729535435259,-1152.79,0.00016438,2]
[340616682,1729535435268,-500.0,0.00016438,2]
[340616683,1729535435278,-1075.81,0.00016438,2]
[340616684,1729535435287,-500.0,0.00016438,2]
[340616685,1729535435297,-500.0,0.00016438,2]
[340616686,1729535435306,-151.0,0.00016438,2]
[340616687,1729535435316,-500.0,0.00016438,2]
[340616688,1729535435325,-33692.17178099,0.00016438,2]
[340616689,1729535435339,-846.24591144,0.00016438,2]
[340616698,1729535438808,-555.0833382,0.00016438,2]
[340616699,1729535438821,-297.30896937,0.00016438,2]
[340616700,1729535438830,-1029.46,0.00016438,2]
[340616701,1729535438841,-273.36191927,0.00016438,2]
[340616702,1729535438851,-1066.12,0.00016438,2]
[340616703,1729535438860,-661.26911136,0.00016438,2]
[340616704,1729535438872,-23.68088864,0.00016438,2]
[340616705,1729535438882,-605.83,0.00016438,2]
[340616706,1729535438892,-500.0,0.00016438,2]
[340616707,1729535438901,-8.82477136,0.00016438,2]
[340616755,1729535443503,-491.17522864,0.00016438,2]
[340616757,1729535443513,-2171.32477135,0.00016438,2]
[340616765,1729535443590,-4049.57522865,0.00016438,2]
[340616767,1729535443600,-500.0,0.00016438,2]
[340616769,1729535443609,-1550.25,0.00016438,2]
[340616771,1729535443619,-713.66,0.00016438,2]
[340616774,1729535443628,-1013.16,0.00016438,2]
[340616776,1729535443637,-831.63,0.00016438,2]
[340616779,1729535443648,-500.0,0.00016438,2]
[340616782,1729535443657,-164.44166292,0.00016438,2]
[340616785,1729535443667,-1944.81,0.00016438,2]
[340616787,1729535443677,-567.02,0.00016438,2]
[340616790,1729535443686,-719.37,0.00016438,2]
[340616793,1729535443696,-151.0,0.00016438,2]
[340616796,1729535443705,-2698.77,0.00016438,2]
[340616798,1729535443715,-738.33,0.00016438,2]
[340616801,1729535443725,-500.0,0.00016438,2]
[340616803,1729535443735,-500.0,0.00016438,2]
[340616805,1729535443744,-760.31,0.00016438,2]
[340616807,1729535443755,-522.96,0.00016438,2]
[340616808,1729535443765,-828.38,0.00016438,2]
[340616810,1729535443775,-1063.28,0.00016438,2]
[340616811,1729535443785,-1028.22,0.00016438,2]
[340616812,1729535443795,-500.0,0.00016438,2]
[340616813,1729535443804,-500.0,0.00016438,2]
[340616814,1729535443814,-500.0,0.00016438,2]
[340616815,1729535443824,-622.2,0.00016438,2]
[340616816,1729535443834,-1736.7,0.00016438,2]
[340616817,1729535443844,-500.0,0.00016438,2]
[340616818,1729535443854,-500.0,0.00016438,2]
[340616819,1729535443864,-208.082784,0.00016438,2]
[340616820,1729535443873,-151.0,0.00016438,2]
[340616821,1729535443883,-500.0,0.00016438,2]
[340616822,1729535443892,-472.77969747,0.00016438,2]
[340616823,1729535443905,-1897.92030253,0.00016438,2]
[340616824,1729535443914,-527.83,0.00016438,2]
[340616825,1729535443924,-1403.01,0.00016438,2]
[340616826,1729535443933,-500.0,0.00016438,2]
[340616827,1729535443947,-151.0,0.00016438,2]
[340616828,1729535443957,-151.0,0.00016438,2]
[340616829,1729535443967,-1584.24,0.00016438,2]
[340616830,1729535443977,-500.0,0.00016438,2]
[340616831,1729535443988,-1415.92,0.00016438,2]
[340616832,1729535443998,-500.0,0.00016438,2]
[340616833,1729535444008,-500.0,0.00016438,2]
[340616834,1729535444018,-1470.45,0.00016438,2]
[340616835,1729535444028,-500.0,0.00016438,2]
[340616836,1729535444038,-151.0,0.00016438,2]
[340616837,1729535444048,-1482.77,0.00016438,2]
[340616838,1729535444058,-1457.88,0.00016438,2]
[340616839,1729535444067,-500.0,0.00016438,2]
[340616840,1729535444078,-500.0,0.00016438,2]
[340616841,1729535444089,-151.0,0.00016438,2]
[340616842,1729535444098,-1216.00511832,0.00016438,2]
[340616843,1729535444112,-1011.85488168,0.00016438,2]
[340616844,1729535444123,-500.0,0.00016438,2]
[340616845,1729535444133,-1438.61,0.00016438,2]
[340616846,1729535444142,-500.0,0.00016438,2]
[340616847,1729535444152,-1219.8,0.00016438,2]
[340616848,1729535444163,-1516.42,0.00016438,2]
[340616849,1729535444173,-193.78135552,0.00016438,2]
[340616850,1729535444183,-833.96,0.00016438,2]
[340616851,1729535444192,-1029.59,0.00016438,2]
[340616852,1729535444202,-500.0,0.00016438,2]
[340616853,1729535444212,-151.0,0.00016438,2]
[340616854,1729535444221,-1064.42,0.00016438,2]
[340616855,1729535444231,-500.0,0.00016438,2]
[340616856,1729535444240,-2953.38,0.00016438,2]
[340616857,1729535444251,-500.0,0.00016438,2]
[340616858,1729535444261,-672.1,0.00016438,2]
[340616859,1729535444271,-1018.18,0.00016438,2]
[340616860,1729535444281,-500.0,0.00016438,2]
[340616861,1729535444292,-500.0,0.00016438,2]
[340616862,1729535444301,-1114.21,0.00016438,2]
[340616863,1729535444311,-709.65,0.00016438,2]
[340616864,1729535444321,-654.68,0.00016438,2]
[340616865,1729535444331,-993.12,0.00016438,2]
[340616866,1729535444342,-745.47,0.00016438,2]
[340616867,1729535444355,-1136.41,0.00016438,2]
[340616868,1729535444366,-151.0,0.00016438,2]
[340616869,1729535444376,-999.07,0.00016438,2]
[340616870,1729535444386,-501.38,0.00016438,2]
[340616871,1729535444396,-152.03962,0.00016438,2]
[340616872,1729535444405,-1023.31,0.00016438,2]
[340616873,1729535444416,-500.0,0.00016438,2]
[340616874,1729535444426,-1190.1,0.00016438,2]
[340616875,1729535444437,-532.76,0.00016438,2]
[340616876,1729535444449,-2631.61,0.00016438,2]
[340616877,1729535444459,-500.0,0.00016438,2]
[340616878,1729535444469,-560.4,0.00016438,2]
[340616879,1729535444480,-3336.39,0.00016438,2]
[340616880,1729535444489,-1791.38,0.00016438,2]
[340616881,1729535444499,-500.0,0.00016438,2]
[340616882,1729535444509,-500.0,0.00016438,2]
[340616883,1729535444519,-500.0,0.00016438,2]
[340616884,1729535444528,-1331.69,0.00016438,2]
[340616885,1729535444538,-1326.82,0.00016438,2]
[340616886,1729535444548,-1337.92,0.00016438,2]
[340616887,1729535444560,-868.16,0.00016438,2]
[340616888,1729535444570,-500.0,0.00016438,2]
[340616889,1729535444579,-500.0,0.00016438,2]
[340616890,1729535444589,-554.99,0.00016438,2]
[340616891,1729535444600,-842.42,0.00016438,2]
[340616892,1729535444611,-643.85,0.00016438,2]
[340616893,1729535444621,-2586.09,0.00016438,2]
[340616894,1729535444631,-611.22,0.00016438,2]
[340616895,1729535444642,-1512.51,0.00016438,2]
[340616896,1729535444651,-500.0,0.00016438,2]
[340616897,1729535444662,-2141.76,0.00016438,2]
[340616898,1729535444673,-652.7,0.00016438,2]
[340616899,1729535444683,-500.0,0.00016438,2]
[340616900,1729535444693,-500.0,0.00016438,2]
[340616901,1729535444703,-151.0,0.00016438,2]
[340616902,1729535444713,-1420.22,0.00016438,2]
[340616903,1729535444724,-500.0,0.00016438,2]
[340616904,1729535444734,-234.33383,0.00016438,2]
[340616905,1729535444745,-500.0,0.00016438,2]
[340616906,1729535444755,-614.85,0.00016438,2]
[340616907,1729535444767,-151.0,0.00016438,2]
[340616908,1729535444776,-234.33383,0.00016438,2]
[340616909,1729535444787,-1112.76,0.00016438,2]
[340616910,1729535444797,-1555.29,0.00016438,2]
[340616911,1729535444808,-500.0,0.00016438,2]
[340616912,1729535444819,-989.34,0.00016438,2]
[340616913,1729535444830,-151.0,0.00016438,2]
[340616914,1729535444841,-500.0,0.00016438,2]
[340616915,1729535444850,-720.46,0.00016438,2]
[340616916,1729535444859,-201.375706,0.00016438,2]
[340616917,1729535444869,-1067.09,0.00016438,2]
[340616918,1729535444880,-151.0,0.00016438,2]
[340616919,1729535444890,-11585.15,0.00016438,2]
[340616920,1729535444901,-1474.9,0.00016438,2]
[340616921,1729535444911,-175.018493,0.00016438,2]
[340616922,1729535444920,-960.73,0.00016438,2]
[340616923,1729535444931,-1902.06,0.00016438,2]
[340616924,1729535444941,-940.11,0.00016438,2]
[340616925,1729535444951,-1067.49,0.00016438,2]
[340616926,1729535444961,-676.14,0.00016438,2]
[340616927,1729535444971,-500.0,0.00016438,2]
[340616928,1729535444981,-840.83,0.00016438,2]
[340616929,1729535444992,-1624.94,0.00016438,2]
[340616930,1729535445002,-151.0,0.00016438,2]
[340616931,1729535445013,-6022.13,0.00016438,2]
[340616932,1729535445023,-13199.4,0.00016438,2]
[340616933,1729535445033,-151.0,0.00016438,2]
[340616934,1729535445043,-157.079822,0.00016438,2]
[340616935,1729535445053,-500.0,0.00016438,2]
[340616936,1729535445064,-1426.58,0.00016438,2]
[340616937,1729535445074,-500.0,0.00016438,2]
[340616938,1729535445084,-151.0,0.00016438,2]
[340616939,1729535445095,-3855.15,0.00016438,2]
[340616940,1729535445105,-1433.03,0.00016438,2]
[340616941,1729535445115,-709.89,0.00016438,2]
[340616942,1729535445127,-500.0,0.00016438,2]
[340616943,1729535445137,-999.91,0.00016438,2]
[340616944,1729535445149,-151.0,0.00016438,2]
[340616945,1729535445161,-151.0,0.00016438,2]
[340616946,1729535445172,-997.81,0.00016438,2]
[340616947,1729535445183,-1189.99,0.00016438,2]
[340616948,1729535445193,-1279.61,0.00016438,2]
[340616949,1729535445203,-151.0,0.00016438,2]
[340616950,1729535445214,-1391.96,0.00016438,2]
[340616951,1729535445224,-500.0,0.00016438,2]
[340616952,1729535445235,-500.0,0.00016438,2]
[340616953,1729535445245,-500.0,0.00016438,2]
[340616954,1729535445255,-33916.2,0.00016438,2]
[340616955,1729535445265,-1474.1,0.00016438,2]
[340616956,1729535445276,-153.0,0.00016438,2]
[340616957,1729535445286,-1783.609174,0.00016465,2]
[340616958,1729535445297,-769.665395,0.00016465,2]
[340616959,1729535445308,-713.44367,0.00016465,2]
[340616960,1729535445318,-500.0,0.00016473,2]
[340616961,1729535445327,-500.0,0.00016473,2]
[340616962,1729535445337,-500.0,0.00016473,2]
[340616963,1729535445347,-501.55851537,0.00016473,2]
[340616964,1729535445362,-505.3689544,0.00016473,2]
[340616965,1729535445371,-358.97574964,0.00016473,2]
[340616966,1729535445379,-500.0,0.00016473,2]
[340616967,1729535445387,-504.10024144,0.00016473,2]
[340616968,1729535445397,-158.80922204,0.00016473,2]
[340616969,1729535445404,-439.84381035,0.00016473,2]
[340616970,1729535445415,-507.39123115,0.00016473,2]
[340616971,1729535445423,-500.0,0.00016473,2]
[340616972,1729535445432,-500.0,0.00016473,2]
[340616973,1729535445442,-501.59598557,0.00016473,2]
[340616974,1729535445450,-500.0,0.00016473,2]
[340616975,1729535445458,-500.0,0.00016473,2]
[340616976,1729535445467,-234.33383,0.00016473,2]
[340616977,1729535445474,-234.33383,0.00016473,2]
[340616978,1729535445482,-151.0,0.00016473,2]
[340616979,1729535445490,-158.44,0.000165,2]
[340616980,1729535445499,-8391.6433676,0.00016535,2]
[340616981,1729535445507,-167.97835,0.0001661,2]
[340616982,1729535445515,-151.0,0.0001661,2]
[340616983,1729535445524,-151.0,0.0001661,2]
[340616984,1729535445532,-151.0,0.0001661,2]
[340616985,1729535445539,-223.036969,0.0001661,2]
[340616986,1729535445547,-223.036969,0.0001661,2]
[340616987,1729535445555,-151.771416,0.0001661,2]
[340616988,1729535445563,-151.0,0.0001661,2]
[340616989,1729535445571,-150.0,0.0001661,2]
[340616990,1729535445578,-1804.0,0.00016612,2]
[340616991,1729535445587,-1154.0,0.00016612,2]
[340616992,1729535445594,-151.0,0.0001662,2]
[340616993,1729535445602,-151.0,0.0001662,2]
[340616994,1729535445610,-151.0,0.0001662,2]
[340616995,1729535445617,-151.0,0.0001662,2]
[340616996,1729535445626,-287.405698,0.0001662,2]
[340616997,1729535445635,-260.131826,0.0001662,2]
[340616998,1729535445644,-156.0,0.0001663,2]
[340616999,1729535445653,-151.0,0.00016656,2]
[340617000,1729535445662,-151.0,0.00016656,2]
[340617001,1729535445669,-151.0,0.00016665,2]
[340617002,1729535445679,-151.0,0.00016665,2]
[340617003,1729535445687,-151.0,0.00016665,2]
[340617004,1729535445696,-151.0,0.00016665,2]
[340617005,1729535445705,-151.0,0.00016665,2]
[340617006,1729535445713,-151.0,0.00016665,2]
[340617007,1729535445720,-151.0,0.00016665,2]
[340617008,1729535445729,-151.0,0.00016665,2]
[340617009,1729535445737,-151.0,0.00016665,2]
[340617010,1729535445745,-151.0,0.00016665,2]
[340617011,1729535445754,-1783.609174,0.00016665,2]
[340617012,1729535445761,-769.665395,0.00016665,2]
[340617013,1729535445769,-713.44367,0.00016665,2]
[340617014,1729535445776,-947.99938574,0.000167,2]
[340617015,1729535445785,-151.0,0.00016702,2]
[340617016,1729535445793,-235.298777,0.00016702,2]
[340617017,1729535445800,-151.0,0.00016702,2]
[340617018,1729535445807,-151.0,0.00016702,2]
[340617019,1729535445816,-151.0,0.00016702,2]
[340617020,1729535445823,-151.0,0.00016702,2]
[340617021,1729535445831,-151.0,0.00016702,2]
[340617022,1729535445839,-151.0,0.00016702,2]
[340617023,1729535445852,-412.63495483,0.00016711,2]
[340617024,1729535445859,-12139.51961274,0.00016711,2]
[340617025,1729535445866,-151.0,0.00016711,2]
[340617026,1729535445874,-151.0,0.00016711,2]
[340617027,1729535445882,-151.0,0.00016711,2]
[340617028,1729535445891,-235.384126,0.00016711,2]
[340617029,1729535445900,-151.0,0.00016711,2]
[340617030,1729535445910,-151.0,0.00016711,2]
[340617031,1729535445920,-151.0,0.00016711,2]
[340617032,1729535445929,-151.0,0.00016711,2]
[340617033,1729535445936,-240.42420494,0.00016712,2]
[340617034,1729535445943,-151.0,0.00016712,2]
[340617035,1729535445950,-155.06396,0.00016712,2]
[340617036,1729535445959,-994.25,0.00016712,2]
[340617037,1729535445968,-1421.21,0.00016712,2]
[340617038,1729535445975,-1205.9,0.00016712,2]
[340617039,1729535445982,-500.0,0.00016712,2]
[340617040,1729535445989,-674.33,0.00016712,2]
[340617041,1729535445997,-758.59,0.00016712,2]
[340617042,1729535446004,-500.0,0.00016712,2]
[340617043,1729535446013,-547.26,0.00016712,2]
[340617044,1729535446022,-614.23,0.00016712,2]
[340617045,1729535446029,-500.0,0.00016712,2]
[340617046,1729535446037,-1883.26,0.00016712,2]
[340617047,1729535446045,-500.0,0.00016712,2]
[340617049,1729535446052,-216.39888724,0.00016712,2]
[340617051,1729535446060,-949.2,0.00016712,2]
[340617052,1729535446068,-500.0,0.00016712,2]
[340617054,1729535446075,-1375.65,0.00016712,2]
[340617056,1729535446084,-689.03,0.00016712,2]
[340617057,1729535446095,-500.0,0.00016712,2]
[340617058,1729535446104,-511.53,0.00016712,2]
[340617059,1729535446114,-500.0,0.00016712,2]
[340617060,1729535446123,-500.0,0.00016712,2]
[340617061,1729535446133,-200.0,0.00016712,2]
[340617062,1729535446142,-500.0,0.00016712,2]
[340617063,1729535446152,-1050.81,0.00016712,2]
[340617064,1729535446163,-500.0,0.00016712,2]
[340617065,1729535446172,-500.0,0.00016712,2]
[340617066,1729535446184,-669.97,0.00016712,2]
[340617067,1729535446194,-500.0,0.00016712,2]
[340617068,1729535446203,-521.08,0.00016712,2]
[340617069,1729535446213,-500.0,0.00016712,2]
[340617070,1729535446223,-591.35,0.00016712,2]
[340617071,1729535446233,-500.0,0.00016712,2]
[340617072,1729535446243,-552.16495785,0.00016712,2]
[340617073,1729535446253,-557.54,0.00016712,2]
[340617074,1729535446263,-500.0,0.00016712,2]
[340617075,1729535446272,-1246.23,0.00016712,2]
[340617076,1729535446282,-500.0,0.00016712,2]
[340617077,1729535446292,-500.0,0.00016712,2]
[340617078,1729535446302,-1059.72,0.00016712,2]
[340617079,1729535446311,-563.86,0.00016712,2]
[340617080,1729535446321,-1523.63,0.00016712,2]
[340617081,1729535446330,-1430.25,0.00016712,2]
[340617082,1729535446340,-500.0,0.00016712,2]
[340617083,1729535446349,-762.51,0.00016712,2]
[340617085,1729535446359,-500.0,0.00016712,2]
[340617086,1729535446369,-530.9,0.00016712,2]
[340617088,1729535446379,-506.19,0.00016712,2]
[340617089,1729535446388,-653.37,0.00016712,2]
[340617090,1729535446398,-1190.16,0.00016712,2]
[340617091,1729535446408,-807.39,0.00016712,2]
[340617092,1729535446418,-836.04,0.00016712,2]
[340617093,1729535446427,-500.0,0.00016712,2]
[340617094,1729535446437,-151.0,0.00016712,2]
[340617095,1729535446446,-500.0,0.00016712,2]
[340617096,1729535446455,-518.03,0.00016712,2]
[340617097,1729535446464,-500.0,0.00016712,2]
[340617098,1729535446474,-500.0,0.00016712,2]
[340617099,1729535446483,-547.26,0.00016712,2]
[340617100,1729535446493,-151.0,0.00016712,2]
[340617101,1729535446502,-151.0,0.00016712,2]
[340617102,1729535446512,-151.0,0.00016712,2]
[340617103,1729535446521,-500.0,0.00016712,2]
[340617104,1729535446530,-500.0,0.00016712,2]
[340617105,1729535446539,-575.38,0.00016712,2]
[340617106,1729535446548,-151.0,0.00016712,2]
[340617107,1729535446557,-151.0,0.00016712,2]
[340617108,1729535446566,-1429.21,0.00016712,2]
[340617109,1729535446575,-604.18,0.00016712,2]
[340617110,1729535446585,-872.09,0.00016712,2]
[340617111,1729535446594,-500.0,0.00016712,2]
[340617112,1729535446603,-637.88,0.00016712,2]
[340617113,1729535446613,-151.0,0.00016712,2]
[340617114,1729535446622,-716.57,0.00016712,2]
[340617115,1729535446631,-500.0,0.00016712,2]
[340617116,1729535446640,-500.0,0.00016712,2]
[340617117,1729535446649,-329.19113411,0.00016712,2]
[340617118,1729535446658,-531.29,0.00016712,2]
[340617119,1729535446667,-500.0,0.00016712,2]
[340617120,1729535446676,-1058.67,0.00016712,2]
[340617121,1729535446685,-583.26729279,0.00016712,2]
[340617122,1729535446694,-500.0,0.00016712,2]
[340617123,1729535446703,-1669.42,0.00016712,2]
[340617124,1729535446712,-718.73,0.00016712,2]
[340617125,1729535446722,-211.686909,0.00016712,2]
[340617126,1729535446731,-515.66142196,0.00016712,2]
[340617127,1729535446740,-500.0,0.00016712,2]
[340617128,1729535446750,-657.04,0.00016712,2]
[340617129,1729535446760,-589.75,0.00016712,2]
[340617130,1729535446769,-2107.22,0.00016712,2]
[340617131,1729535446777,-1147.8,0.00016712,2]
[340617132,1729535446787,-695.97,0.00016712,2]
[340617133,1729535446795,-708.05,0.00016712,2]
[340617134,1729535446804,-1067.4,0.00016712,2]
[340617135,1729535446815,-695.74,0.00016712,2]
[340617136,1729535446824,-1299.3,0.00016712,2]
[340617137,1729535446833,-1279.6,0.00016712,2]
[340617138,1729535446843,-500.0,0.00016712,2]
[340617139,1729535446852,-500.0,0.00016712,2]
[340617140,1729535446862,-504.22,0.00016712,2]
[340617141,1729535446871,-2241.59,0.00016712,2]
[340617142,1729535446880,-892.71,0.00016712,2]
[340617143,1729535446889,-1083.29,0.00016712,2]
[340617144,1729535446898,-500.0,0.00016712,2]
[340617145,1729535446907,-1506.45,0.00016712,2]
[340617146,1729535446916,-500.0,0.00016712,2]
[340617147,1729535446926,-543.4,0.00016712,2]
[340617148,1729535446935,-500.0,0.00016712,2]
[340617149,1729535446944,-2003.05,0.00016712,2]
[340617150,1729535446953,-500.0,0.00016712,2]
[340617151,1729535446962,-500.0,0.00016712,2]
[340617152,1729535446972,-1317.55,0.00016712,2]
[340617153,1729535446982,-500.0,0.00016712,2]
[340617154,1729535446991,-1023.82,0.00016712,2]
[340617155,1729535447000,-597.26,0.00016712,2]
[340617156,1729535447009,-1663.06,0.00016712,2]
[340617157,1729535447019,-500.0,0.00016712,2]
[340617158,1729535447029,-649.28,0.00016712,2]
[340617159,1729535447039,-500.0,0.00016712,2]
[340617160,1729535447048,-1353.39,0.00016712,2]
[340617161,1729535447057,-1845.43,0.00016712,2]
[340617162,1729535447067,-1300.2,0.00016712,2]
[340617163,1729535447077,-1345.87,0.00016712,2]
[340617164,1729535447087,-605.03,0.00016712,2]
[340617165,1729535447097,-776.26,0.00016712,2]
[340617166,1729535447107,-510.8,0.00016712,2]
[340617167,1729535447117,-572.2,0.00016712,2]
[340617168,1729535447127,-500.0,0.00016712,2]
[340617169,1729535447137,-223.036969,0.00016712,2]
[340617170,1729535447146,-223.036969,0.00016712,2]
[340617171,1729535447156,-223.036969,0.00016712,2]
[340617172,1729535447166,-223.036969,0.00016712,2]
[340617173,1729535447176,-223.036969,0.00016712,2]
[340617174,1729535447186,-223.036969,0.00016712,2]
[340617175,1729535447196,-832.81,0.00016712,2]
[340617176,1729535447205,-1469.33,0.00016712,2]
[340617177,1729535447215,-500.0,0.00016712,2]
[340617178,1729535447224,-1435.28,0.00016712,2]
[340617179,1729535447235,-555.84,0.00016712,2]
[340617180,1729535447245,-500.0,0.00016712,2]
[340617181,1729535447255,-500.0,0.00016712,2]
[340617182,1729535447265,-1362.09,0.00016712,2]
[340617183,1729535447275,-797.61,0.00016712,2]
[340617184,1729535447284,-1897.36,0.00016712,2]
[340617185,1729535447294,-1116.09,0.00016712,2]
[340617186,1729535447305,-2649.52,0.00016712,2]
[340617187,1729535447315,-1212.04,0.00016712,2]
[340617188,1729535447325,-520.03,0.00016712,2]
[340617189,1729535447335,-917.07,0.00016712,2]
[340617190,1729535447346,-1120.22,0.00016712,2]
[340617191,1729535447359,-1172.0,0.00016712,2]
[340617192,1729535447370,-627.95,0.00016712,2]
[340617193,1729535447379,-500.0,0.00016712,2]
[340617194,1729535447389,-729.22,0.00016712,2]
[340617195,1729535447399,-1133.71,0.00016712,2]
[340617196,1729535447409,-151.0,0.00016712,2]
[340617197,1729535447418,-245.665136,0.00016712,2]
[340617198,1729535447429,-626.39,0.00016712,2]
[340617199,1729535447438,-991.44,0.00016712,2]
[340617200,1729535447448,-1115.82,0.00016712,2]